[Event "German Bundesliga 2023-24"]
[Site "Germany"]
[Date "2024.02.24"]
[Round "10.22"]
[White "Riehle, Marco"]
[Black "Dautov, Rustem"]
[Result "1/2-1/2"]
[ECO "B14"]
[WhiteElo "2368"]
[BlackElo "2584"]
[Annotator "TA"]
[PlyCount "65"]
[EventDate "2023.10.20"]
[EventType "team-tourn"]
[EventCountry "GER"]
[SourceTitle "playchess.com"]
[Source "ChessBase"]
[SourceQuality "1"]
[TimeControl "40/6000+30:3000+30"]

{[%evp 22,65,18,27,22,14,33,42,25,0,0,0,0,0,46,57,120,124,119,114,106,102,107,102,99,91,91,110,97,97,110,106,91,104,101,99,104,84,191,193,173,190,186,195,223,96]} 1. e4 {[%emt 0:00:06]} c6 {[%emt 0:00:08]} 2. c4 {[%emt 0:00:26]} d5 {[%emt 0:00:33]} 3. exd5 {[%emt 0:00:55]} cxd5 {[%emt 0:00:11]} 4. d4 {[%emt 0:00:32]} Nf6 {[%emt 0:00:13]} 5. Nc3 {[%emt 0:00:55]} e6 {[%emt 0:00:08]} 6. Nf3 {[%emt 0:00:51]} Bb4 {[%emt 0:00:42]} 7. cxd5 {[%emt 0:03:20]} Nxd5 {[%emt 0:00:13]} 8. Bd2 {[%emt 0:00:04]} Nc6 {[%emt 0:00:08]} 9. Bd3 {[%emt 0:00:34]} O-O {[%emt 0:00:16]} 10. O-O {[%emt 0:00:04]} Be7 {[%emt 0:00:07]} 11. Qe2 {[%emt 0:01:32]} Nf6 {[%emt 0:02:31]} 12. Ne4 {[%emt 0:03:41]} Qb6 {[%emt 0:02:40]} 13. Rfd1 {[%emt 0:05:41]} Bd7 {[%emt 0:36:15]} 14. Nxf6+ {[%emt 0:05:15]} Bxf6 {[%emt 0:00:34] White is slightly better.} 15. Bg5 {[%emt 0:00:04]} (15. Ne5 $5 Rad8 (15... Nxd4 16. Qe4 $18) (15... Qxd4 $2 16. Bc3 $18) 16. Nc4 Qxd4 17. Ba5 $16) 15... Bxg5 {[%emt 0:19:48]} (15... Nxd4 16. Qe4 (16. Bxh7+ Kh8 $14) 16... Nf5 (16... Nxf3+ $2 17. gxf3 g6 18. Bxf6 $18) 17. Bxf6 gxf6 18. Qf4 $14) (15... Bxd4 $6 16. Nxd4 Nxd4 17. Qg4 $16) 16. Bxh7+ {[%emt 0:01:13]} Kxh7 {[%emt 0:00:41]} 17. Nxg5+ {[%emt 0:00:04]} Kh6 {[%emt 0:05:31]} (17... Kg6 $11 18. Qg4 f5 (18... Qxb2 19. Nxe6+ Kf6 20. Qg5+ Kxe6 21. d5+ Kd6 22. dxc6+ Ke6 23. Re1+ Kd6 24. cxd7 $18)) 18. Qe3 $1 $14 {[%emt 0:06:50][%csl LRe6,LRf7][%mdl 1024] White has compensation.} e5 {[%emt 0:22:26]} (18... Qxb2 19. Nxe6+ Kh7 20. Qe4+ Kg8 21. Ng5 $18) (18... f6 $14 19. Nxe6+ Kh7 20. Nxf8+ Rxf8) 19. Ne6+ $1 $16 {[%emt 0:23:41]} Kh7 {[%emt 0:01:52][%cal Bh6h7,Bh7g8,Bg8g7,Bg7f6,Bf6e7,Be7f8][%mdl 32]} 20. Qe4+ {[%emt 0:01:45]} Kg8 {[%emt 0:02:43]} 21. Ng5 {[%emt 0:04:22]} g6 {[%emt 0:00:38][%cal Rc6d4]} (21... exd4 22. Qh7#) 22. Qh4 {[%emt 0:00:06][%csl Gg5][%cal Rh4h7]} Kg7 {[%emt 0:00:06] White must now prevent ...Rh8.} 23. Qh7+ {[%emt 0:00:02]} Kf6 {[%emt 0:00:06]} 24. Ne4+ $40 {[%emt 0:00:27][%mdl 128] White goes for the king.} Ke7 {[%emt 0:00:44]} 25. Qg7 {[%emt 0:06:42] Intending Qf6+ and mate.} Rg8 {[%emt 0:01:04]} (25... exd4 26. Qf6+ Ke8 27. Nd6#) (25... Nxd4 $2 26. Qxe5+ Kd8 27. Rxd4 $18 (27. Qxd4 Qxd4 28. Rxd4 Kc7 $16)) 26. Qf6+ {[%emt 0:00:32]} Kf8 {[%emt 0:00:01]} 27. dxe5 {[%emt 0:09:26]} Bg4 {[%emt 0:00:14][%cal Og8g7] [#]} 28. Ng5 $1 {[%emt 0:04:55]} Rg7 {[%emt 0:00:40][%cal Oa8e8] And now ...Re8! would win.} 29. h3 $1 {[%emt 0:04:51] Dancing on a razor blade. White is much more active.} Nxe5 {[%emt 0:00:41] [#]} 30. Qxb6 $1 $18 {[%emt 0:01:41] White is clearly better.} ({Inferior is} 30. Qxe5 Bxd1 31. Rxd1 Re8 $11) 30... axb6 {[%emt 0:00:01]} 31. hxg4 {[%emt 0:00:05]} Nxg4 {[%emt 0:02:04]} 32. Rd7 {[%emt 0:06:09]} Re8 {[%emt 0:00:41] [#]} 33. f3 {[%emt 0:03:24] Weighted Error Value: White=0.02 (flawless) /Black=0.18 (very precise) .  Mistake:       	White=1     	Black=3      OK:         	White=10    	Black=5      Best:        	White=1     	Black=5      Strong:       	White=4     	---} ({Not} 33. Rxb7 f6 34. Rxg7 (34. Rxb6 fxg5 35. a4 Ra7 $15) 34... Kxg7 $14) (33. Rc1 $1 $18 {is the precise move to win.}) 1/2-1/2

[Event "German Bundesliga 2023-24"]
[Site "Germany"]
[Date "2024.02.24"]
[Round "10.23"]
[White "Kozak, Adam"]
[Black "Georgiev, Kiril"]
[Result "1-0"]
[ECO "C50"]
[WhiteElo "2600"]
[BlackElo "2548"]
[Annotator "RC"]
[PlyCount "187"]
[EventDate "2023.10.20"]
[EventType "team-tourn"]
[EventCountry "GER"]
[SourceTitle "playchess.com"]
[Source "ChessBase"]
[SourceQuality "1"]
[TimeControl "40/6000+30:3000+30"]

1. e4 {[%emt 0:00:05]} e5 {[%emt 0:00:54]} 2. Nf3 {[%emt 0:01:31]} Nc6 {[%emt 0:00:21]} 3. Bc4 {[%emt 0:00:07]} Nf6 {[%emt 0:00:38]} 4. d3 {[%emt 0:00:21]} Bc5 {[%emt 0:03:38]} 5. a4 {[%emt 0:02:17]} h6 {[%emt 0:05:35]} 6. a5 {[%emt 0:01:02]} a6 {[%emt 0:01:15]} 7. O-O {[%emt 0:04:28]} O-O {[%emt 0:02:46]} 8. c3 {[%emt 0:13:47]} d6 {[%emt 0:03:18]} 9. Be3 {[%emt 0:05:14]} Ba7 {[%emt 0:01:17]} 10. Nbd2 {[%emt 0:06:41]} Ne7 {[%emt 0:10:49]} 11. Re1 {[%emt 0:08:06]} Bxe3 {[%emt 0:06:14]} 12. Rxe3 {[%emt 0:05:42]} Ng6 {[%emt 0:01:27]} 13. h3 {[%emt 0:04:08]} Rb8 {[%emt 0:18:44]} 14. d4 {[%emt 0:05:49]} Re8 {[%emt 0:03:32]} 15. Bf1 {[%emt 0:05:24]} Be6 {[%emt 0:06:27]} 16. g3 {[%emt 0:01:41]} Nh7 {[%emt 0:03:52]} 17. Bg2 {[%emt 0:03:34]} Ng5 {[%emt 0:05:37]} 18. Nxg5 {[%emt 0:00:50]} Qxg5 {[%emt 0:00:37]} 19. Nf3 {[%emt 0:05:05]} Qe7 {[%emt 0:05:53]} 20. Re1 {[%emt 0:04:20]} Rf8 {[%emt 0:02:22]} 21. Nd2 {[%emt 0:04:51]} Qf6 {[%emt 0:03:00]} 22. Nf1 {[%emt 0:01:28]} Ne7 {[%emt 0:01:24]} 23. Ne3 {[%emt 0:00:57]} Rbd8 {[%emt 0:01:46]} 24. Qd2 {[%emt 0:04:12]} Qg5 {[%emt 0:05:04]} 25. b4 {[%emt 0:06:36]} c6 {[%emt 0:01:17]} 26. Rad1 {[%emt 0:01:54]} Bb3 {[%emt 0:00:27]} 27. Rc1 {[%emt 0:00:50]} Be6 {[%emt 0:00:20]} 28. Qe2 {[%emt 0:01:25]} exd4 {[%emt 0:01:36]} 29. cxd4 {[%emt 0:00:38]} d5 {[%emt 0:01:52]} 30. e5 {[%emt 0:02:16]} Nf5 {[%emt 0:02:27]} 31. Nxf5 {[%emt 0:00:59]} Bxf5 {[%emt 0:00:41]} 32. Rc3 {[%emt 0:00:46]} Rfe8 {[%emt 0:02:26]} 33. f4 {[%emt 0:02:25]} Qe7 {[%emt 0:00:04]} 34. Rb3 {[%emt 0:00:39]} Be4 {[%emt 0:02:46]} 35. g4 {[%emt 0:01:15]} f5 {[%emt 0:01:50]} 36. Bxe4 {[%emt 0:04:25]} dxe4 {[%emt 0:02:49]} 37. Qc4+ {[%emt 0:02:39]} Rd5 {[%emt 0:01:38]} 38. gxf5 {[%emt 0:00:21]} Qf7 {[%emt 0:00:10]} 39. Rxe4 {[%emt 0:00:38]} Qxf5 {[%emt 0:00:12]} 40. Rbe3 {[%emt 0:00:31]} Re6 {[%emt 0:00:56]} 41. Qe2 {[%emt 0:05:00]} Rb5 {[%emt 0:06:57]} 42. Qe1 {[%emt 0:10:11]} Kf7 {[%emt 0:06:09]} 43. Kh2 {[%emt 0:03:38]} Ke8 {[%emt 0:03:27]} 44. Qd2 {[%emt 0:09:05]} Kd7 {[%emt 0:05:16]} 45. Re1 {[%emt 0:03:20]} Kc8 {[%emt 0:01:41]} 46. R4e2 {[%emt 0:02:41]} Kb8 {[%emt 0:05:12]} 47. Rf1 {[%emt 0:09:10]} Rd5 {[%emt 0:05:42]} 48. Rf3 {[%emt 0:02:34]} g6 {[%emt 0:01:14]} 49. Rc3 {[%emt 0:06:38]} Rd8 {[%emt 0:03:03]} 50. Kg3 {[%emt 0:01:11]} g5 {[%emt 0:03:05]} 51. fxg5 {[%emt 0:00:49]} hxg5 {[%emt 0:01:07]} 52. Rf3 {[%emt 0:00:32]} Qh7 {[%emt 0:00:55]} 53. Kg2 {[%emt 0:01:37]} Qh4 {[%emt 0:03:22]} 54. Rg3 {[%emt 0:00:24]} Rh8 {[%emt 0:03:31]} 55. Qe3 {[%emt 0:00:22]} Ka8 {[%emt 0:00:59]} 56. Rf2 {[%emt 0:00:48]} Rg6 {[%emt 0:00:57]} 57. Rg4 {[%emt 0:00:12]} Qh7 {[%emt 0:00:17]} 58. Qd3 {[%emt 0:00:20]} Qg8 {[%emt 0:01:49]} 59. Rf3 {[%emt 0:00:53]} Rgh6 {[%emt 0:00:58]} 60. Qb3 {[%emt 0:00:19]} Qd8 {[%emt 0:00:48]} 61. Qf7 {[%emt 0:00:46]} R6h7 {[%emt 0:00:43]} 62. Qe6 {[%emt 0:00:10]} Re8 {[%emt 0:01:37]} 63. Qg6 {[%emt 0:00:39]} Rh4 {[%emt 0:01:46]} 64. Qe4 {[%emt 0:00:42]} Qe7 {[%emt 0:00:21]} 65. Qe1 {[%emt 0:00:30]} Qe6 {[%emt 0:00:53]} 66. Rxh4 {[%emt 0:00:18]} gxh4 {[%emt 0:00:05]} 67. Qxh4 {[%emt 0:00:28]} Qd5 {[%emt 0:00:49]} 68. Qf2 {[%emt 0:00:17]} Qd8 {[%emt 0:01:36]} 69. Kh2 {[%emt 0:00:11]} Qe7 {[%emt 0:00:22]} 70. Qd2 {[%emt 0:00:39]} Rh8 {[%emt 0:00:09]} 71. Rf4 {[%emt 0:01:07]} Qe6 {[%emt 0:00:52]} 72. Qe3 {[%emt 0:00:19]} Qe7 {[%emt 0:00:37]} 73. Qc3 {[%emt 0:00:40]} Qe6 {[%emt 0:00:33]} 74. Rf2 {[%emt 0:00:22]} Qd7 {[%emt 0:00:17]} 75. Qe3 {[%emt 0:00:29]} Qe7 {[%emt 0:01:08]} 76. e6 {[%emt 0:00:38]} Qxb4 {[%emt 0:00:30]} 77. Qe5 {[%emt 0:00:29]} Re8 {[%emt 0:00:12]} 78. Re2 {[%emt 0:00:34]} Qe7 {[%emt 0:00:18]} 79. Qc5 {[%emt 0:00:28]} Qc7+ {[%emt 0:00:25]} 80. Qe5 {[%emt 0:00:30]} Qe7 {[%emt 0:00:02]} 81. Kg2 {[%emt 0:00:31]} Rg8+ {[%emt 0:00:55]} 82. Kh1 {[%emt 0:00:28]} Qh4 {[%emt 0:00:48]} 83. Kh2 {[%emt 0:00:29]} Qe7 {[%emt 0:00:56]} 84. Qf4 {[%emt 0:00:33]} Rh8 {[%emt 0:01:26]} 85. Qg4 {[%emt 0:00:28]} Qd6+ {[%emt 0:00:37]} 86. Qg3 {[%emt 0:00:02]} Qe7 {[%emt 0:00:01]} 87. Qg4 {[%emt 0:00:56]} Re8 {[%emt 0:00:50]} 88. h4 {[%emt 0:00:18]} Rh8 {[%emt 0:00:18]} 89. Kh3 {[%emt 0:00:07]} Qf6 {[%emt 0:00:25]} 90. Kg2 {[%emt 0:01:09]} Qe7 {[%emt 0:00:50]} 91. Qg5 {[%emt 0:00:29]} Qe8 {[%emt 0:00:02]} 92. Kf1 {[%emt 0:00:31]} Rf8+ {[%emt 0:00:45]} 93. Ke1 {[%emt 0:00:12]} Rg8 {[%emt 0:00:39]} 94. Qc5 {[%emt 0:00:48]} 1-0

[Event "German Bundesliga 2023-24"]
[Site "Germany"]
[Date "2024.02.24"]
[Round "10.24"]
[White "Lai, Hing Ting"]
[Black "Heimann, Andreas"]
[Result "1/2-1/2"]
[ECO "D78"]
[WhiteElo "2464"]
[BlackElo "2552"]
[Annotator "RC"]
[PlyCount "40"]
[EventDate "2023.10.20"]
[EventType "team-tourn"]
[EventCountry "GER"]
[SourceTitle "playchess.com"]
[Source "ChessBase"]
[SourceQuality "1"]
[TimeControl "40/6000+30:3000+30"]

1. Nf3 {[%emt 0:00:03]} d5 {[%emt 0:00:06]} 2. g3 {[%emt 0:00:09]} g6 {[%emt 0:01:00]} 3. Bg2 {[%emt 0:00:24]} Bg7 {[%emt 0:00:05]} 4. d4 {[%emt 0:00:29]} Nf6 {[%emt 0:00:07]} 5. O-O {[%emt 0:00:26]} O-O {[%emt 0:00:10]} 6. Nbd2 {[%emt 0:01:03]} c6 {[%emt 0:01:19]} 7. c4 {[%emt 0:00:22]} Bf5 {[%emt 0:00:31]} 8. b3 {[%emt 0:00:15]} Ne4 {[%emt 0:04:43]} 9. Bb2 {[%emt 0:01:07]} Nd7 {[%emt 0:00:56]} 10. Nh4 {[%emt 0:11:44]} Nxd2 {[%emt 0:03:41]} 11. Qxd2 {[%emt 0:00:08]} Be6 {[%emt 0:00:04]} 12. cxd5 {[%emt 0:02:10]} cxd5 {[%emt 0:00:37]} 13. Qb4 {[%emt 0:01:04]} a5 {[%emt 0:30:49]} 14. Qxb7 {[%emt 0:09:19]} a4 {[%emt 0:00:21]} 15. Nf3 {[%emt 0:34:27]} Rb8 {[%emt 0:03:42]} 16. Qc6 {[%emt 0:04:59]} axb3 {[%emt 0:01:14]} 17. axb3 {[%emt 0:01:07]} Rxb3 {[%emt 0:01:14]} 18. Ba3 {[%emt 0:00:54]} Bf6 {[%emt 0:02:19]} 19. Qa4 {[%emt 0:08:23]} Rb8 {[%emt 0:01:28]} 20. Rfc1 {[%emt 0:05:42]} Ra8 {[%emt 0:00:17]} 1/2-1/2

[Event "German Bundesliga 2023-24"]
[Site "Germany"]
[Date "2024.02.24"]
[Round "10.25"]
[White "Nakamura, Hikaru"]
[Black "Anand, Viswanathan"]
[Result "1/2-1/2"]
[ECO "C47"]
[WhiteElo "2788"]
[BlackElo "2748"]
[Annotator "TA"]
[PlyCount "109"]
[EventDate "2023.10.20"]
[EventType "team-tourn"]
[EventCountry "GER"]
[SourceTitle "playchess.com"]
[Source "ChessBase"]
[SourceQuality "1"]
[TimeControl "40/6000+30:3000+30"]

{[%evp 18,109,0,0,4,0,1,-2,15,18,13,13,25,27,27,26,39,33,21,33,40,42,44,45,50,51,44,47,43,45,36,42,37,37,42,37,94,40,66,27,27,16,27,11,27,27,34,5,5,5,5,5,8,0,0,0,0,0,0,0,0,0,0,0,16,0,0,0,0,0,0,0,0,0,0,0,0,0,0,0,0,0,0,0,0,0,0,0,0,0,0,0,0,0]} 1. e4 {[%emt 0:00:05]} e5 {[%emt 0:00:09]} 2. Nf3 {[%emt 0:00:14]} Nc6 {[%emt 0:00:08]} 3. Nc3 {[%emt 0:00:10]} Nf6 {[%emt 0:00:19]} 4. d4 {[%emt 0:00:04]} exd4 {[%emt 0:00:18]} 5. Nxd4 {[%emt 0:00:07]} Bb4 {[%emt 0:00:20]} 6. Nxc6 {[%emt 0:00:06]} bxc6 {[%emt 0:00:06]} 7. Bd3 {[%emt 0:00:06]} O-O {[%emt 0:00:23]} 8. O-O {[%emt 0:00:05]} d5 {[%emt 0:00:09]} 9. exd5 {[%emt 0:00:07]} cxd5 {[%emt 0:00:09]} 10. h3 $1 {[%emt 0:00:04][%mdl 4] is currently scoring better than 10.Bg5. C47: Scotch Four Knights and Four Knights with 4 g3.} c6 {[%emt 0:03:11]} 11. Qf3 {[%emt 0:02:43]} Bd6 {[%emt 0:05:20]} 12. Re1 {[%emt 0:05:14]} Nd7 {[%emt 0:11:10]} 13. Bf4 {[%emt 0:12:48]} Nc5 {[%emt 0:01:12]} 14. Rad1 $146 {[%emt 0:00:47]} ({Predecessor:} 14. Ne2 Ne6 15. Bxd6 Qxd6 16. Qf5 g6 17. Qf6 c5 18. c4 Bb7 19. Rad1 {½-½ Abel,D (2427)-Lehner,O (2453) AUT-chT 1112 2012 (10.6)}) 14... Rb8 {[%emt 0:09:36]} 15. b3 {[%emt 0:02:51]} Qf6 {[%emt 0:01:57]} 16. Ne2 {[%emt 0:07:06]} a5 {[%emt 0:09:00]} 17. Bxd6 {[%emt 0:09:36]} (17. Qg3 {is interesting.} Rd8 18. c4 Ba6 19. Bc2) 17... Qxd6 {[%emt 0:00:08]} 18. c4 {[%emt 0:00:04]} Nxd3 {[%emt 0:07:07]} 19. Qxd3 {[%emt 0:01:11]} a4 {[%emt 0:02:00]} 20. bxa4 {[%emt 0:12:57]} Ba6 {[%emt 0:01:47]} 21. Qc3 {[%emt 0:08:41]} (21. c5 Bxd3 22. cxd6 Bxe2 23. Rxe2 Rbd8 $16) 21... Qb4 $1 {[%emt 0:01:02]} 22. cxd5 {[%emt 0:04:25]} Bxe2 $1 {[%emt 0:00:07]} 23. Qxb4 {[%emt 0:00:03]} (23. Qxc6 $2 {loses.} Bxd1 24. Rxd1 Rfe8 $19) 23... Rxb4 {[%emt 0:00:08]} 24. Rxe2 {[%emt 0:00:02]} cxd5 {[%emt 0:00:09]} 25. Rxd5 {[%emt 0:00:16]} Rxa4 {[%emt 0:00:12]} 26. Red2 {[%emt 0:06:12]} h5 {[%emt 0:04:58]} ({Black should play} 26... g6 $14) 27. Kf1 {[%emt 0:04:17]} ({White should try} 27. Rxh5 $16 Rfa8 28. g3) 27... Rfa8 {[%emt 0:03:29]} 28. Rd8+ {[%emt 0:00:30]} Rxd8 {[%emt 0:00:05]} 29. Rxd8+ {[%emt 0:00:02]} Kh7 {[%emt 0:00:13]} 30. Rd2 {[%emt 0:00:03]} h4 {[%emt 0:03:12]} 31. Ke2 {[%emt 0:00:47]} g5 {[%emt 0:00:29]} 32. Kd3 {[%emt 0:04:37]} g4 {[%emt 0:07:50]} 33. hxg4 {[%emt 0:02:48]} Rxg4 {[%emt 0:00:11]} 34. f3 {[%emt 0:00:02]} Ra4 {[%emt 0:02:03]} 35. Kc3 {[%emt 0:00:17]} h3 {[%emt 0:02:00]} 36. gxh3 {[%emt 0:02:39]} Ra3+ {[%emt 0:00:08]} 37. Kc4 {[%emt 0:06:18]} Rxf3 {[%emt 0:00:49]} 38. Rd3 {[%emt 0:00:30]} Rf1 {[%emt 0:06:52]} 39. a4 {[%emt 0:06:49]} Ra1 $1 {[%emt 0:00:16]} 40. Kb5 {[%emt 0:00:35]} f5 {[%emt 0:01:04]} 41. Rd4 {[%emt 0:53:14]} Rf1 $1 {[%emt 0:55:32]} 42. a5 {[%emt 0:00:47]} f4 {[%emt 0:00:05]} 43. Rb4 {[%emt 0:04:58]} f3 {[%emt 0:00:00]} 44. Rb3 {[%emt 0:00:30]} Kg6 {[%emt 0:00:00]} 45. a6 {[%emt 0:01:30]} Kg5 $1 {[%emt 0:00:00]} 46. Kb6 {[%emt 0:03:19]} (46. a7 $5 Ra1 $8 47. Kb6 $11) 46... Kf4 $1 {[%emt 0:00:00]} 47. h4 {[%emt 0:01:03]} Ra1 {[%emt 0:00:00]} 48. Rb2 {[%emt 0:00:03]} Kg4 {[%emt 0:00:00]} 49. Rb4+ {[%emt 0:00:31]} Kg3 {[%emt 0:00:00]} 50. Rb3 {[%emt 0:00:04]} Kg4 {[%emt 0:00:00]} 51. Rxf3 {[%emt 0:00:18]} Kxf3 {[%emt 0:00:00]} 52. a7 {[%emt 0:00:02]} Kg4 {[%emt 0:00:00]} 53. Kb7 {[%emt 0:00:02]} Kxh4 {[%emt 0:00:00]} 54. a8=R {[%emt 0:00:04]} Rxa8 {[%emt 0:00:00]} 55. Kxa8 {[%emt 0:00:59]} 1/2-1/2

[Event "German Bundesliga 2023-24"]
[Site "Germany"]
[Date "2024.02.24"]
[Round "10.26"]
[White "Rapport, Richard"]
[Black "Abdusattorov, Nodirbek"]
[Result "1/2-1/2"]
[ECO "C77"]
[WhiteElo "2717"]
[BlackElo "2716"]
[Annotator "TA"]
[PlyCount "43"]
[EventDate "2023.10.20"]
[EventType "team-tourn"]
[EventCountry "GER"]
[SourceTitle "playchess.com"]
[Source "ChessBase"]
[SourceQuality "1"]
[TimeControl "40/6000+30:3000+30"]

{[%evp 16,43,-14,-11,13,13,13,12,22,20,20,17,25,14,29,21,35,35,25,27,24,22,25,29,37,19,22,0,0,0]} 1. e4 {[%emt 0:00:22]} e5 {[%emt 0:00:13]} 2. Nf3 {[%emt 0:00:10]} Nc6 {[%emt 0:00:21]} 3. Bb5 {[%emt 0:00:38]} a6 {[%emt 0:00:07]} 4. Ba4 {[%emt 0:00:13]} Nf6 {[%emt 0:00:10]} 5. d3 {[%emt 0:00:13]} d6 {[%emt 0:01:37]} 6. c4 {[%emt 0:00:52]} g6 {[%emt 0:00:28]} 7. Nc3 {[%emt 0:00:10][%cal Bb1c3,Bc3e2,Be2g3,Bg3e4][%mdl 32]} Bg7 {[%emt 0:00:05]} 8. h3 {[%emt 0:00:05]} O-O {[%emt 0:00:09]} 9. O-O {[%emt 0:00:08]} Nd4 {[%emt 0:06:04]} 10. Nxd4 {[%emt 0:01:55]} exd4 {[%emt 0:00:45]} 11. Ne2 {[%emt 0:00:07]} Nd7 {[%emt 0:06:09]} 12. b4 {[%emt 0:01:56][%cal Bb2b4,Bb4b5][%mdl 32]} a5 {[%emt 0:07:33]} 13. Bxd7 {[%emt 0:01:56]} Bxd7 {[%emt 0:00:56]} 14. b5 {[%emt 0:00:07]} f5 {[%emt 0:00:05]} 15. exf5 {[%emt 0:06:43]} Bxf5 {[%emt 0:02:53]} 16. Ng3 {[%emt 0:06:05]} Be6 {[%emt 0:03:12]} 17. a4 {[%emt 0:04:22]} Qd7 {[%emt 0:05:47]} 18. Ne4 {[%emt 0:08:45]} Rae8 {[%emt 0:00:45][%cal Oe6c4]} 19. f3 {[%emt 0:01:59]} Bf5 {[%emt 0:03:29]} 20. Bd2 {[%emt 0:08:56]} b6 {[%emt 0:01:42]} 21. Qe2 {[%emt 0:10:27]} h6 {[%emt 0:01:39]} 22. Rae1 {[%emt 0:07:00] Weighted Error Value: White=0.03 (flawless) /Black=0.06 (flawless) .  OK:         	White=10    	Black=4} 1/2-1/2

[Event "German Bundesliga 2023-24"]
[Site "Germany"]
[Date "2024.02.24"]
[Round "10.27"]
[White "Duda, Jan-Krzysztof"]
[Black "Aronian, Levon"]
[Result "1/2-1/2"]
[ECO "C67"]
[WhiteElo "2726"]
[BlackElo "2725"]
[Annotator "RC"]
[PlyCount "141"]
[EventDate "2023.10.20"]
[EventType "team-tourn"]
[EventCountry "GER"]
[SourceTitle "playchess.com"]
[Source "ChessBase"]
[SourceQuality "1"]
[TimeControl "40/6000+30:3000+30"]

1. e4 {[%emt 0:00:04]} e5 {[%emt 0:00:07]} 2. Nf3 {[%emt 0:00:05]} Nc6 {[%emt 0:00:06]} 3. Bb5 {[%emt 0:00:07]} Nf6 {[%emt 0:00:06]} 4. O-O {[%emt 0:00:35]} Nxe4 {[%emt 0:00:05]} 5. Re1 {[%emt 0:00:24]} Nd6 {[%emt 0:00:06]} 6. Nxe5 {[%emt 0:00:07]} Be7 {[%emt 0:00:04]} 7. Bf1 {[%emt 0:00:10]} Nxe5 {[%emt 0:00:13]} 8. Rxe5 {[%emt 0:00:05]} O-O {[%emt 0:00:07]} 9. Nc3 {[%emt 0:00:23]} Ne8 {[%emt 0:00:23]} 10. Nd5 {[%emt 0:00:22]} Bd6 {[%emt 0:00:06]} 11. Re1 {[%emt 0:00:09]} c6 {[%emt 0:00:18]} 12. Ne3 {[%emt 0:00:08]} Be7 {[%emt 0:01:22]} 13. c4 {[%emt 0:00:43]} Nc7 {[%emt 0:00:13]} 14. d4 {[%emt 0:00:08]} d5 {[%emt 0:00:07]} 15. cxd5 {[%emt 0:00:16]} Bb4 {[%emt 0:00:05]} 16. Bd2 {[%emt 0:00:08]} Bxd2 {[%emt 0:00:06]} 17. Qxd2 {[%emt 0:00:04]} Nxd5 {[%emt 0:00:06]} 18. Nxd5 {[%emt 0:00:09]} Qxd5 {[%emt 0:00:05]} 19. Re5 {[%emt 0:00:07]} Qd6 {[%emt 0:00:05]} 20. Bc4 {[%emt 0:00:08]} Bd7 {[%emt 0:00:16]} 21. a3 {[%emt 0:00:36]} Rad8 {[%emt 0:04:34]} 22. Qe3 {[%emt 0:02:42]} Rfe8 {[%emt 0:12:34]} 23. Re1 {[%emt 0:16:07]} Qf8 {[%emt 0:01:06]} 24. f4 {[%emt 0:10:52]} b6 {[%emt 0:05:20]} 25. b4 {[%emt 0:23:33]} Rxe5 {[%emt 0:00:25]} 26. dxe5 {[%emt 0:01:20]} Be6 {[%emt 0:04:16]} 27. Qe4 {[%emt 0:03:56]} c5 {[%emt 0:04:50]} 28. f5 {[%emt 0:03:16]} Bxc4 {[%emt 0:00:07]} 29. Qxc4 {[%emt 0:00:05]} Rd4 {[%emt 0:05:51]} 30. Qc3 {[%emt 0:01:36]} h6 {[%emt 0:00:24]} 31. e6 {[%emt 0:03:10]} fxe6 {[%emt 0:02:51]} 32. fxe6 {[%emt 0:00:04]} Qe7 {[%emt 0:00:04]} 33. bxc5 {[%emt 0:00:14]} bxc5 {[%emt 0:00:05]} 34. h3 {[%emt 0:00:09]} Rd8 {[%emt 0:02:37]} 35. Kh1 {[%emt 0:03:54]} Kh8 {[%emt 0:01:46]} 36. Qc4 {[%emt 0:07:37]} Rc8 {[%emt 0:02:20]} 37. a4 {[%emt 0:01:02]} Re8 {[%emt 0:02:22]} 38. Qb5 {[%emt 0:02:45]} Rc8 {[%emt 0:01:29]} 39. Qd7 {[%emt 0:04:00]} Re8 {[%emt 0:00:08]} 40. Kh2 {[%emt 0:04:53]} Kh7 {[%emt 0:03:03]} 41. Qc6 {[%emt 0:50:17]} Qh4 {[%emt 0:54:54]} 42. Re4 {[%emt 0:03:39]} Rc8 {[%emt 0:04:23]} 43. Qb7 {[%emt 0:05:08]} Rb8 {[%emt 0:05:22]} 44. Qd5 {[%emt 0:02:14]} Qe7 {[%emt 0:00:47]} 45. Re1 {[%emt 0:08:49]} Rc8 {[%emt 0:10:02]} 46. Qc4 {[%emt 0:02:58]} Qd6+ {[%emt 0:09:35]} 47. Kh1 {[%emt 0:01:18]} Re8 {[%emt 0:03:28]} 48. Qe4+ {[%emt 0:01:30]} Kh8 {[%emt 0:00:39]} 49. a5 {[%emt 0:00:00]} Qd2 {[%emt 0:00:00]} 50. e7 {[%emt 0:00:00]} c4 {[%emt 0:00:00]} 51. Rf1 {[%emt 0:00:00]} Qd6 {[%emt 0:00:00]} 52. Rf7 {[%emt 0:00:00]} Qd1+ {[%emt 0:00:00]} 53. Kh2 {[%emt 0:00:00]} Qd6+ {[%emt 0:00:00]} 54. Kg1 {[%emt 0:00:00]} Qd1+ {[%emt 0:00:00]} 55. Kf2 {[%emt 0:00:00]} Qd2+ {[%emt 0:00:00]} 56. Kf3 {[%emt 0:00:00]} Qd1+ {[%emt 0:00:00]} 57. Kg3 {[%emt 0:00:00]} Qd6+ {[%emt 0:00:00]} 58. Kh4 {[%emt 0:00:00]} c3 {[%emt 0:00:00]} 59. Qf5 {[%emt 0:00:00]} Rg8 {[%emt 0:00:00]} 60. g4 {[%emt 0:00:00]} Qh2 {[%emt 0:00:00]} 61. g5 {[%emt 0:00:00]} Qe2 {[%emt 0:00:00]} 62. gxh6 {[%emt 0:02:57]} Qe1+ {[%emt 0:00:00]} 63. Qf2 {[%emt 0:00:42]} Qe4+ {[%emt 0:00:00]} 64. Kg3 {[%emt 0:02:26]} c2 {[%emt 0:00:00]} 65. Rxg7 {[%emt 0:00:47]} Qe5+ {[%emt 0:00:00]} 66. Kh4 {[%emt 0:00:08]} Qe4+ {[%emt 0:00:00]} 67. Kg3 {[%emt 0:00:07]} Qd3+ {[%emt 0:00:00]} 68. Kh2 {[%emt 0:01:05]} Qd6+ {[%emt 0:00:00]} 69. Qg3 {[%emt 0:00:18]} Qd2+ {[%emt 0:00:00]} 70. Qg2 {[%emt 0:00:05]} Qf4+ {[%emt 0:00:00]} 71. Qg3 {[%emt 0:00:05]} 1/2-1/2